[Event "2nd Irena Warakomska Memorial-A"]
[Site "Suwalki"]
[Date "2018.08.01"]
[Round "1"]
[White "Czarnota, Pawel"]
[Black "Bugalski, Michal"]
[Result "1-0"]
[ECO "C24"]
[WhiteElo "2548"]
[BlackElo "2263"]
[Annotator "RC"]
[PlyCount "29"]
[EventDate "2018.08.01"]
[EventType "swiss"]
[EventCountry "POL"]
[SourceTitle "playchess.com"]
[Source "ChessBase"]
[SourceQuality "1"]
[TimeControl "40/5400+30:1800+30"]

1. e4 {[%emt 0:00:00]} e5 {[%emt 0:00:00]} 2. Bc4 {[%emt 0:00:58]} Nf6 {[%emt 0:04:54]} 3. d3 {[%emt 0:00:58]} c6 4. Nf3 d5 {[%emt 0:28:02]} 5. Bb3 {[%emt 0:01:36]} Bd6 {[%emt 0:05:48]} 6. O-O {[%emt 0:15:08]} d4 {[%emt 0:16:58]} 7. Nbd2 {[%emt 0:05:39]} Bg4 {[%emt 0:06:32]} 8. h3 {[%emt 0:01:51]} Bh5 {[%emt 0:00:56]} 9. g4 {[%emt 0:06:41]} Bg6 {[%emt 0:04:34]} 10. Nc4 {[%emt 0:01:47]} h5 {[%emt 0:08:04]} 11. g5 {[%emt 0:05:06]} Nh7 {[%emt 0:01:17]} 12. Ncxe5 {[%emt 0:00:12]} h4 {[%emt 0:05:40]} 13. Nxg6 {[%emt 0:04:06]} fxg6 {[%emt 0:00:02]} 14. Nxd4 {[%emt 0:01:29]} Nxg5 {[%emt 0:05:02]} 15. Qg4 {[%emt 0:00:18]} 1-0

[Event "2nd Irena Warakomska Memorial-A"]
[Site "Suwalki"]
[Date "2018.08.01"]
[Round "1"]
[White "Yevseev, Denis"]
[Black "Bukojemski, Adam"]
[Result "1/2-1/2"]
[ECO "A80"]
[WhiteElo "2513"]
[BlackElo "2233"]
[Annotator "RC"]
[PlyCount "53"]
[EventDate "2018.08.01"]
[EventType "swiss"]
[EventCountry "POL"]
[SourceTitle "playchess.com"]
[Source "ChessBase"]
[SourceQuality "1"]
[TimeControl "40/5400+30:1800+30"]

1. d4 {[%emt 0:00:00]} f5 {[%emt 0:00:07]} 2. Bf4 {[%emt 0:00:00]} Nf6 {[%emt 0:00:51]} 3. e3 {[%emt 0:00:01]} d6 {[%emt 0:01:11]} 4. h3 {[%emt 0:02:15]} g6 {[%emt 0:06:45]} 5. Bc4 {[%emt 0:02:13]} Bg7 {[%emt 0:00:45]} 6. Nf3 {[%emt 0:02:14]} e6 {[%emt 0:00:32]} 7. a4 {[%emt 0:03:53]} O-O {[%emt 0:05:42]} 8. Nc3 {[%emt 0:02:39]} Kh8 {[%emt 0:05:30]} 9. Qe2 {[%emt 0:01:37]} Nc6 {[%emt 0:03:13]} 10. O-O-O {[%emt 0:02:10]} Qe7 {[%emt 0:06:27]} 11. g4 {[%emt 0:16:52]} Ne4 {[%emt 0:04:53]} 12. gxf5 {[%emt 0:03:46]} Nxc3 {[%emt 0:02:21]} 13. bxc3 {[%emt 0:00:03]} Rxf5 {[%emt 0:00:58]} 14. Bd3 {[%emt 0:02:47]} Rh5 {[%emt 0:01:08]} 15. h4 {[%emt 0:06:57]} e5 {[%emt 0:03:23]} 16. Bg5 {[%emt 0:00:07]} Qf7 {[%emt 0:01:22]} 17. d5 {[%emt 0:05:10]} Na5 {[%emt 0:15:12]} 18. e4 {[%emt 0:06:04]} Bg4 {[%emt 0:12:03]} 19. Nxe5 {[%emt 0:00:09]} Bxe5 {[%emt 0:00:06]} 20. Qxg4 {[%emt 0:00:05]} Qxf2 {[%emt 0:03:09]} 21. Qd7 {[%emt 0:07:21]} Qc5 {[%emt 0:06:15]} 22. Bd8 {[%emt 0:01:22]} Nb3+ {[%emt 0:11:36]} 23. cxb3 {[%emt 0:04:02]} Qxc3+ {[%emt 0:00:18]} 24. Bc2 {[%emt 0:00:03]} Qb2+ {[%emt 0:00:33]} 25. Kd2 {[%emt 0:00:01]} Qc3+ {[%emt 0:02:56]} 26. Kc1 {[%emt 0:00:05]} Qb2+ {[%emt 0:01:29]} 27. Kd2 1/2-1/2

[Event "2nd Irena Warakomska Memorial-A"]
[Site "Suwalki"]
[Date "2018.08.01"]
[Round "1"]
[White "Rahul, Srivatshav P"]
[Black "Zgadzaj, Rafal"]
[Result "1-0"]
[ECO "A88"]
[WhiteElo "2388"]
[BlackElo "2154"]
[Annotator "NA"]
[PlyCount "71"]
[EventDate "2018.08.01"]
[EventType "swiss"]
[EventCountry "POL"]
[SourceTitle "playchess.com"]
[Source "ChessBase"]
[SourceQuality "1"]
[TimeControl "40/5400+30:1800+30"]

1. d4 {[%emt 0:00:00]} g6 {[%emt 0:00:00]} 2. c4 {[%emt 0:00:04]} Bg7 {[%emt 0:00:00]} 3. Nf3 {[%emt 0:00:19]} f5 {[%emt 0:00:00]} 4. g3 {[%emt 0:00:06]} d6 {[%emt 0:00:09]} 5. Bg2 {[%emt 0:00:11]} Nf6 {[%emt 0:00:05]} 6. O-O {[%emt 0:00:07]} O-O {[%emt 0:00:05]} 7. Nc3 {[%emt 0:00:06]} c6 {[%emt 0:00:57]} 8. b3 {[%emt 0:00:27]} Na6 {[%emt 0:00:29]} 9. Re1 {[%emt 0:00:06]} Qe8 10. Ba3 {[%emt 0:06:30]} b5 {[%emt 0:28:51]} 11. cxb5 {[%emt 0:27:46]} cxb5 {[%emt 0:00:12]} 12. Ng5 {[%emt 0:02:52]} Rb8 {[%emt 0:01:51]} 13. Nd5 {[%emt 0:01:07]} b4 {[%emt 0:08:16]} 14. Bb2 e6 {[%emt 0:15:34]} 15. Nxf6+ {[%emt 0:02:15]} Bxf6 {[%emt 0:00:02]} 16. Qd2 {[%emt 0:15:20]} Qe7 {[%emt 0:01:40]} 17. h4 {[%emt 0:08:39]} Bd7 {[%emt 0:13:13]} 18. e4 {[%emt 0:03:22]} fxe4 {[%emt 0:02:29]} 19. Nxe4 {[%emt 0:04:01]} Bg7 {[%emt 0:00:18]} 20. Ng5 {[%emt 0:02:00]} Qf6 {[%emt 0:04:58]} 21. Ne4 {[%emt 0:01:34]} Qe7 {[%emt 0:00:18]} 22. Ng5 {[%emt 0:00:16]} Qf6 {[%emt 0:00:04]} 23. Rac1 {[%emt 0:00:06]} h6 24. Ne4 {[%emt 0:09:05]} Qe7 {[%emt 0:03:14]} 25. d5 {[%emt 0:00:50]} Bxb2 {[%emt 0:06:07]} 26. Qxb2 {[%emt 0:00:09]} e5 {[%emt 0:00:06]} 27. f4 {[%emt 0:00:35]} Rbe8 {[%emt 0:03:38]} 28. fxe5 {[%emt 0:00:42]} Qxe5 {[%emt 0:01:09]} 29. Qxe5 {[%emt 0:00:12]} dxe5 {[%emt 0:00:35]} 30. Bf1 {[%emt 0:00:28]} Nb8 {[%emt 0:01:38]} 31. Rc7 {[%emt 0:00:20]} Rc8 {[%emt 0:04:41]} 32. Rec1 {[%emt 0:01:09]} Kh8 33. d6 {[%emt 0:02:31]} a5 {[%emt 0:04:54]} 34. Bb5 {[%emt 0:00:59]} Bf5 {[%emt 0:00:34]} 35. Nf6 {[%emt 0:00:08]} Rxc7 {[%emt 0:00:49]} 36. dxc7 1-0

[Event "2nd Irena Warakomska Memorial-A"]
[Site "Suwalki"]
[Date "2018.08.01"]
[Round "1"]
[White "Roy, Prantik"]
[Black "Praczukowski, Stanislaw"]
[Result "1-0"]
[ECO "A45"]
[WhiteElo "2377"]
[BlackElo "2136"]
[Annotator "NA"]
[PlyCount "63"]
[EventDate "2018.08.01"]
[EventType "swiss"]
[EventCountry "POL"]
[SourceTitle "playchess.com"]
[Source "ChessBase"]
[SourceQuality "1"]
[TimeControl "40/5400+30:1800+30"]

1. d4 {[%emt 0:00:00]} Nf6 {[%emt 0:00:00]} 2. Bg5 {[%emt 0:00:03]} Ne4 {[%emt 0:00:07]} 3. Bf4 {[%emt 0:00:43]} c5 {[%emt 0:00:49]} 4. f3 {[%emt 0:00:48]} Qa5+ {[%emt 0:00:30]} 5. c3 {[%emt 0:00:31]} Nf6 {[%emt 0:00:30]} 6. d5 {[%emt 0:00:46]} Qb6 {[%emt 0:01:18]} 7. Bc1 {[%emt 0:01:59]} d6 {[%emt 0:00:37]} 8. e4 {[%emt 0:00:14]} g6 {[%emt 0:00:43]} 9. c4 {[%emt 0:02:32]} Bg7 {[%emt 0:01:33]} 10. Nc3 {[%emt 0:00:22]} O-O {[%emt 0:00:24]} 11. Bd3 {[%emt 0:00:34]} e6 {[%emt 0:02:00]} 12. Nge2 {[%emt 0:00:35]} exd5 {[%emt 0:00:51]} 13. exd5 {[%emt 0:00:09]} Nbd7 {[%emt 0:02:07]} 14. f4 {[%emt 0:00:37]} a6 {[%emt 0:06:18]} 15. O-O {[%emt 0:01:35]} Qc7 {[%emt 0:03:16]} 16. a4 {[%emt 0:01:18]} Re8 {[%emt 0:03:26]} 17. h3 {[%emt 0:05:14]} Rb8 {[%emt 0:03:30]} 18. Qc2 {[%emt 0:02:51]} Nf8 {[%emt 0:18:45]} 19. Ng3 {[%emt 0:07:15]} Bd7 {[%emt 0:03:07]} 20. f5 {[%emt 0:03:32]} b5 {[%emt 0:02:22]} 21. Bg5 {[%emt 0:01:13]} bxc4 {[%emt 0:03:22]} 22. Bxc4 {[%emt 0:00:43]} Rb4 {[%emt 0:01:51]} 23. b3 {[%emt 0:08:02]} h6 {[%emt 0:09:29]} 24. Bxh6 {[%emt 0:05:20]} Bxh6 {[%emt 0:01:38]} 25. fxg6 {[%emt 0:00:20]} Be3+ {[%emt 0:02:48]} 26. Kh1 {[%emt 0:00:12]} Bd4 {[%emt 0:00:15]} 27. gxf7+ {[%emt 0:00:15]} Kxf7 {[%emt 0:00:07]} 28. Nh5 {[%emt 0:01:13]} Re3 {[%emt 0:09:36]} 29. Nxf6 {[%emt 0:01:46]} Bxf6 {[%emt 0:02:04]} 30. Qf2 {[%emt 0:00:21]} Rxc3 {[%emt 0:00:10]} 31. Qxf6+ {[%emt 0:00:06]} Ke8 {[%emt 0:00:03]} 32. Qxf8# {[%emt 0:00:06]} 1-0

[Event "2nd Irena Warakomska Memorial-A"]
[Site "Suwalki"]
[Date "2018.08.01"]
[Round "1"]
[White "Oglaza, Oskar"]
[Black "Kuchava, Ana"]
[Result "1-0"]
[ECO "A13"]
[WhiteElo "2364"]
[BlackElo "2124"]
[Annotator "NA"]
[PlyCount "69"]
[EventDate "2018.08.01"]
[EventType "swiss"]
[EventCountry "POL"]
[SourceTitle "playchess.com"]
[Source "ChessBase"]
[SourceQuality "1"]
[TimeControl "40/5400+30:1800+30"]

1. c4 {[%emt 0:00:00]} e6 {[%emt 0:00:15]} 2. g3 {[%emt 0:00:00]} d5 {[%emt 0:00:32]} 3. Bg2 {[%emt 0:00:12]} Nf6 {[%emt 0:00:20]} 4. Nf3 {[%emt 0:00:35]} c6 {[%emt 0:02:35]} 5. b3 {[%emt 0:04:25]} Nbd7 {[%emt 0:02:54]} 6. Bb2 {[%emt 0:00:45]} Bd6 {[%emt 0:10:33]} 7. d4 {[%emt 0:03:55]} O-O {[%emt 0:01:37]} 8. O-O {[%emt 0:00:12]} Re8 {[%emt 0:01:12]} 9. Nc3 {[%emt 0:01:23]} dxc4 {[%emt 0:13:02]} 10. bxc4 {[%emt 0:00:26]} e5 {[%emt 0:02:06]} 11. e3 {[%emt 0:06:20]} exd4 {[%emt 0:03:32]} 12. exd4 {[%emt 0:00:09]} Nf8 {[%emt 0:02:47]} 13. Qb3 {[%emt 0:10:23]} Qb6 {[%emt 0:27:20]} 14. Qc2 {[%emt 0:15:55]} Qa5 {[%emt 0:00:59]} 15. Rad1 {[%emt 0:18:59]} Be6 {[%emt 0:14:38]} 16. Nd2 {[%emt 0:02:39]} Bf5 {[%emt 0:04:41]} 17. Qb3 {[%emt 0:04:05]} Qb4 {[%emt 0:02:05]} 18. c5 {[%emt 0:01:04]} Qxb3 {[%emt 0:00:09]} 19. axb3 {[%emt 0:00:10]} Be7 {[%emt 0:00:37]} 20. Nc4 {[%emt 0:01:32]} Rad8 {[%emt 0:04:28]} 21. b4 {[%emt 0:01:55]} Be6 {[%emt 0:03:13]} 22. Na5 {[%emt 0:00:22]} Rb8 {[%emt 0:00:49]} 23. b5 {[%emt 0:04:44]} Bd8 {[%emt 0:00:31]} 24. Nxb7 {[%emt 0:06:54]} cxb5 {[%emt 0:00:04]} 25. Nd6 {[%emt 0:01:10]} Re7 {[%emt 0:00:23]} 26. d5 {[%emt 0:00:37]} Bg4 {[%emt 0:00:29]} 27. f3 {[%emt 0:00:38]} b4 {[%emt 0:00:34]} 28. fxg4 {[%emt 0:04:17]} bxc3 {[%emt 0:00:05]} 29. Bxc3 {[%emt 0:00:05]} Nxg4 {[%emt 0:00:44]} 30. Nf5 {[%emt 0:03:21]} Re3 {[%emt 0:01:13]} 31. Nxe3 {[%emt 0:00:52]} Nxe3 {[%emt 0:00:02]} 32. Rb1 {[%emt 0:00:58]} Rc8 {[%emt 0:00:18]} 33. c6 {[%emt 0:00:55]} Nxf1 {[%emt 0:00:13]} 34. Kxf1 {[%emt 0:01:12]} Be7 {[%emt 0:01:16]} 35. Bh3 {[%emt 0:00:36]} 1-0

[Event "2nd Irena Warakomska Memorial-A"]
[Site "Suwalki"]
[Date "2018.08.01"]
[Round "1"]
[White "Kosakowski, Jakub"]
[Black "Jankowiak, Tomasz"]
[Result "1-0"]
[ECO "B94"]
[WhiteElo "2361"]
[BlackElo "2117"]
[Annotator "NA"]
[PlyCount "45"]
[EventDate "2018.08.01"]
[EventType "swiss"]
[EventCountry "POL"]
[SourceTitle "playchess.com"]
[Source "ChessBase"]
[SourceQuality "1"]
[TimeControl "40/5400+30:1800+30"]

1. e4 {[%emt 0:00:00]} c5 {[%emt 0:00:00]} 2. Nf3 {[%emt 0:00:14]} d6 {[%emt 0:00:00]} 3. d4 {[%emt 0:00:10]} cxd4 {[%emt 0:00:00]} 4. Nxd4 {[%emt 0:00:08]} Nf6 {[%emt 0:00:00]} 5. Nc3 {[%emt 0:00:07]} a6 {[%emt 0:00:00]} 6. Bg5 {[%emt 0:01:24]} Nbd7 {[%emt 0:00:03]} 7. Bc4 {[%emt 0:00:34]} Qb6 {[%emt 0:01:06]} 8. O-O {[%emt 0:05:10]} Qxb2 {[%emt 0:11:05]} 9. Nd5 {[%emt 0:03:05]} Nxd5 {[%emt 0:03:26]} 10. Rb1 {[%emt 0:00:10]} Qc3 {[%emt 0:13:08]} 11. Bxd5 {[%emt 0:00:10]} Nc5 {[%emt 0:00:36]} 12. Re1 {[%emt 0:10:12]} h6 {[%emt 0:19:47]} 13. Bh4 {[%emt 0:15:20]} e5 {[%emt 0:20:15]} 14. Nf5 {[%emt 0:15:46]} Ra7 {[%emt 0:06:42]} 15. Qg4 {[%emt 0:05:51]} Ne6 {[%emt 0:13:28]} 16. Bxe6 {[%emt 0:00:19]} Bxe6 {[%emt 0:00:16]} 17. Nxg7+ {[%emt 0:00:08]} Bxg7 {[%emt 0:00:57]} 18. Qxg7 {[%emt 0:00:06]} Rf8 {[%emt 0:00:08]} 19. Qf6 {[%emt 0:00:29]} Qc7 {[%emt 0:00:21]} 20. Rb6 {[%emt 0:00:19]} Rg8 {[%emt 0:01:25]} 21. Rd1 {[%emt 0:00:10]} Kd7 {[%emt 0:02:23]} 22. Rbxd6+ {[%emt 0:00:12]} Qxd6 {[%emt 0:00:12]} 23. Qe7+ {[%emt 0:00:05]} 1-0

[Event "2nd Irena Warakomska Memorial-A"]
[Site "Suwalki"]
[Date "2018.08.01"]
[Round "1"]
[White "Debarshi, Mukherjee"]
[Black "Dmochowska, Agnieszka"]
[Result "1-0"]
[ECO "A15"]
[WhiteElo "2308"]
[BlackElo "2096"]
[Annotator "NA"]
[PlyCount "65"]
[EventDate "2018.08.01"]
[EventType "swiss"]
[EventCountry "POL"]
[SourceTitle "playchess.com"]
[Source "ChessBase"]
[SourceQuality "1"]
[TimeControl "40/5400+30:1800+30"]

1. c4 {[%emt 0:01:00]} Nf6 {[%emt 0:00:00]} 2. g3 {[%emt 0:00:24]} e6 {[%emt 0:00:14]} 3. Nf3 {[%emt 0:00:35]} d5 {[%emt 0:00:35]} 4. d4 {[%emt 0:00:42]} Bb4+ {[%emt 0:00:19]} 5. Bd2 {[%emt 0:00:11]} Be7 {[%emt 0:00:08]} 6. Bg2 {[%emt 0:00:27]} O-O {[%emt 0:00:15]} 7. O-O {[%emt 0:00:44]} c6 {[%emt 0:00:36]} 8. Qc2 {[%emt 0:00:32]} b6 {[%emt 0:00:25]} 9. Bf4 {[%emt 0:02:12]} Ba6 {[%emt 0:03:32]} 10. cxd5 {[%emt 0:03:26]} Nxd5 {[%emt 0:03:10]} 11. Rd1 {[%emt 0:03:42]} Nd7 {[%emt 0:02:45]} 12. Nc3 {[%emt 0:01:35]} Rc8 {[%emt 0:11:04]} 13. Rac1 {[%emt 0:06:49]} Nxf4 {[%emt 0:04:54]} 14. gxf4 {[%emt 0:00:05]} Qc7 {[%emt 0:00:46]} 15. e3 {[%emt 0:04:53]} Bb7 {[%emt 0:03:34]} 16. Qa4 {[%emt 0:11:39]} a6 {[%emt 0:02:03]} 17. Ne5 {[%emt 0:14:45]} b5 {[%emt 0:03:09]} 18. Qc2 {[%emt 0:02:16]} Nxe5 {[%emt 0:12:42]} 19. fxe5 {[%emt 0:01:07]} c5 {[%emt 0:01:11]} 20. d5 {[%emt 0:06:06]} exd5 {[%emt 0:05:55]} 21. Nxd5 {[%emt 0:01:40]} Qxe5 {[%emt 0:04:08]} 22. Qf5 {[%emt 0:01:25]} Bd6 {[%emt 0:15:37]} 23. Qxe5 {[%emt 0:01:37]} Bxe5 {[%emt 0:00:08]} 24. Ne7+ {[%emt 0:00:07]} Kh8 {[%emt 0:00:04]} 25. Nxc8 {[%emt 0:04:44]} Bxc8 {[%emt 0:00:58]} 26. b3 {[%emt 0:04:41]} g6 {[%emt 0:03:33]} 27. Rxc5 {[%emt 0:00:11]} Bg7 {[%emt 0:01:48]} 28. Rc7 {[%emt 0:02:52]} h5 {[%emt 0:01:43]} 29. Ra7 {[%emt 0:01:38]} Be5 {[%emt 0:01:19]} 30. Bd5 {[%emt 0:03:14]} Kg7 {[%emt 0:01:11]} 31. Rc1 {[%emt 0:00:07]} Bf5 {[%emt 0:08:04]} 32. f4 {[%emt 0:01:08]} Bb8 {[%emt 0:02:30]} 33. Rb7 1-0

[Event "2nd Irena Warakomska Memorial-A"]
[Site "Suwalki"]
[Date "2018.08.01"]
[Round "1"]
[White "Szustakowski, Antoni"]
[Black "Sliwerski, Radoslaw"]
[Result "1-0"]
[ECO "D38"]
[WhiteElo "2300"]
[BlackElo "1990"]
[Annotator "NA"]
[PlyCount "63"]
[EventDate "2018.08.01"]
[EventType "swiss"]
[EventCountry "POL"]
[SourceTitle "playchess.com"]
[Source "ChessBase"]
[SourceQuality "1"]
[TimeControl "40/5400+30:1800+30"]

1. d4 {[%emt 0:00:00]} Nf6 {[%emt 0:00:00]} 2. c4 {[%emt 0:00:00]} e6 {[%emt 0:00:00]} 3. Nf3 {[%emt 0:00:00]} d5 {[%emt 0:00:00]} 4. Nc3 {[%emt 0:00:00]} Bb4 {[%emt 0:00:03]} 5. cxd5 {[%emt 0:00:07]} exd5 {[%emt 0:00:02]} 6. Bf4 {[%emt 0:00:11]} c5 {[%emt 0:11:05]} 7. Rc1 {[%emt 0:08:04]} O-O {[%emt 0:09:35]} 8. e3 {[%emt 0:04:26]} Nc6 {[%emt 0:20:12]} 9. Be2 {[%emt 0:01:19]} Ne4 {[%emt 0:06:45]} 10. O-O {[%emt 0:09:09]} Bxc3 {[%emt 0:03:44]} 11. bxc3 {[%emt 0:03:57]} c4 {[%emt 0:00:04]} 12. Nd2 {[%emt 0:04:32]} g5 {[%emt 0:10:45]} 13. Nxe4 {[%emt 0:02:58]} gxf4 {[%emt 0:00:08]} 14. Nd2 {[%emt 0:00:07]} fxe3 {[%emt 0:02:24]} 15. fxe3 {[%emt 0:00:05]} f5 {[%emt 0:00:15]} 16. Rf3 {[%emt 0:12:58]} Kh8 {[%emt 0:02:19]} 17. Nf1 {[%emt 0:05:11]} b5 {[%emt 0:01:38]} 18. Ng3 {[%emt 0:00:42]} Qe8 {[%emt 0:02:49]} 19. Qd2 {[%emt 0:01:32]} Be6 {[%emt 0:04:02]} 20. Rcf1 {[%emt 0:01:53]} Qg6 {[%emt 0:01:41]} 21. Bd1 {[%emt 0:03:48]} Ne7 {[%emt 0:05:24]} 22. Qb2 {[%emt 0:00:44]} a6 {[%emt 0:06:46]} 23. Qb1 {[%emt 0:05:29]} Rfe8 {[%emt 0:05:26]} 24. Bc2 {[%emt 0:02:49]} Qg5 {[%emt 0:00:44]} 25. Kh1 {[%emt 0:06:16]} Rab8 {[%emt 0:02:58]} 26. Qb4 {[%emt 0:02:50]} Ng6 {[%emt 0:02:52]} 27. Qd6 {[%emt 0:05:42]} Nh4 {[%emt 0:00:48]} 28. R3f2 {[%emt 0:01:20]} Bg8 {[%emt 0:00:12]} 29. Nxf5 {[%emt 0:02:28]} Nxf5 {[%emt 0:00:18]} 30. Rxf5 {[%emt 0:00:06]} Qd8 {[%emt 0:00:46]} 31. Qg3 {[%emt 0:00:27]} b4 {[%emt 0:00:26]} 32. Rf7 {[%emt 0:00:29]} 1-0

[Event "2nd Irena Warakomska Memorial-A"]
[Site "Suwalki"]
[Date "2018.08.01"]
[Round "1"]
[White "Jaroch, Karol"]
[Black "Warakomski, Tomasz"]
[Result "1/2-1/2"]
[ECO "A20"]
[WhiteElo "2222"]
[BlackElo "2512"]
[Annotator "RC"]
[PlyCount "90"]
[EventDate "2018.08.01"]
[EventType "swiss"]
[EventCountry "POL"]
[SourceTitle "playchess.com"]
[Source "ChessBase"]
[SourceQuality "1"]
[TimeControl "40/5400+30:1800+30"]

1. c4 {[%emt 0:00:00]} e5 {[%emt 0:01:05]} 2. g3 {[%emt 0:00:01]} h5 {[%emt 0:01:54]} 3. Nf3 {[%emt 0:03:59]} e4 {[%emt 0:00:21]} 4. Nd4 {[%emt 0:00:14]} Nc6 {[%emt 0:03:45]} 5. Nxc6 {[%emt 0:00:32]} dxc6 6. Bg2 Nf6 {[%emt 0:02:56]} 7. Nc3 {[%emt 0:13:07]} Bf5 {[%emt 0:00:24]} 8. Qb3 {[%emt 0:00:27]} Rb8 {[%emt 0:03:20]} 9. O-O {[%emt 0:10:25]} Bc5 {[%emt 0:08:44]} 10. d3 {[%emt 0:11:33]} exd3 {[%emt 0:01:35]} 11. exd3 {[%emt 0:00:38]} O-O {[%emt 0:28:13]} 12. Ne4 {[%emt 0:02:21]} Nxe4 {[%emt 0:02:29]} 13. dxe4 {[%emt 0:00:16]} Be6 {[%emt 0:00:05]} 14. Be3 {[%emt 0:17:58]} Bxe3 {[%emt 0:02:48]} 15. Qxe3 {[%emt 0:00:09]} Bxc4 {[%emt 0:00:11]} 16. Rfd1 {[%emt 0:02:07]} Qf6 {[%emt 0:07:34]} 17. b3 {[%emt 0:00:39]} Ba6 {[%emt 0:01:19]} 18. Qxa7 {[%emt 0:02:28]} Rbd8 {[%emt 0:01:04]} 19. Qe3 {[%emt 0:01:11]} Rd3 {[%emt 0:14:12]} 20. e5 {[%emt 0:02:18]} Qf5 {[%emt 0:00:34]} 21. Rxd3 {[%emt 0:00:32]} Qxd3 {[%emt 0:00:06]} 22. Qg5 {[%emt 0:03:35]} Qd4 {[%emt 0:06:49]} 23. Re1 {[%emt 0:00:56]} Qc3 {[%emt 0:00:19]} 24. Rc1 {[%emt 0:08:13]} Qb2 {[%emt 0:00:35]} 25. Re1 {[%emt 0:03:12]} Qxa2 {[%emt 0:05:13]} 26. Qxh5 {[%emt 0:05:56]} Bd3 {[%emt 0:00:16]} 27. Qd1 {[%emt 0:01:56]} Bc2 {[%emt 0:03:10]} 28. Qd7 {[%emt 0:00:17]} Qa5 {[%emt 0:00:10]} 29. Re3 {[%emt 0:00:15]} Qa1+ {[%emt 0:03:40]} 30. Bf1 {[%emt 0:00:07]} Qd1 {[%emt 0:01:02]} 31. e6 {[%emt 0:04:40]} fxe6 {[%emt 0:00:13]} 32. Qxe6+ {[%emt 0:00:06]} Kh8 {[%emt 0:00:07]} 33. Qe7 {[%emt 0:00:40]} Rf6 {[%emt 0:00:55]} 34. Qxc7 {[%emt 0:01:13]} Bxb3 {[%emt 0:00:55]} 35. Qxb7 {[%emt 0:02:18]} Bc4 {[%emt 0:00:36]} 36. Qc8+ {[%emt 0:00:08]} Kh7 {[%emt 0:00:02]} 37. Qh3+ {[%emt 0:00:11]} Rh6 {[%emt 0:00:05]} 38. Qf5+ {[%emt 0:02:27]} Rg6 {[%emt 0:00:05]} 39. Qh3+ {[%emt 0:01:05]} Rh6 {[%emt 0:00:05]} 40. Qf5+ {[%emt 0:00:00]} Rg6 {[%emt 0:00:00]} 41. Rd3 Bxd3 42. Qxd3 Qh5 43. Qb1 Kh8 44. Bd3 Re6 45. Bf1 Rg6 1/2-1/2

[Event "2nd Irena Warakomska Memorial-A"]
[Site "Suwalki"]
[Date "2018.08.01"]
[Round "1"]
[White "Ocytko, Andrzej"]
[Black "Cukrowski, Filip"]
[Result "0-1"]
[ECO "A05"]
[WhiteElo "2155"]
[BlackElo "2404"]
[Annotator "NA"]
[PlyCount "64"]
[EventDate "2018.08.01"]
[EventType "swiss"]
[EventCountry "POL"]
[SourceTitle "playchess.com"]
[Source "ChessBase"]
[SourceQuality "1"]
[TimeControl "40/5400+30:1800+30"]

1. Nf3 {[%emt 0:00:00]} Nf6 {[%emt 0:01:50]} 2. g3 {[%emt 0:00:00]} g6 {[%emt 0:00:48]} 3. b3 {[%emt 0:00:37]} Bg7 {[%emt 0:00:08]} 4. Bb2 {[%emt 0:00:07]} O-O {[%emt 0:00:05]} 5. Bg2 {[%emt 0:00:19]} d5 {[%emt 0:01:07]} 6. c4 {[%emt 0:03:21]} c6 {[%emt 0:02:03]} 7. O-O {[%emt 0:01:15]} Bf5 8. d4 {[%emt 0:05:17]} Qc8 {[%emt 0:03:28]} 9. Nc3 {[%emt 0:11:32]} Bh3 {[%emt 0:06:16]} 10. cxd5 {[%emt 0:17:57]} Bxg2 {[%emt 0:03:25]} 11. Kxg2 {[%emt 0:00:16]} cxd5 {[%emt 0:00:05]} 12. Rc1 {[%emt 0:15:06]} Nc6 {[%emt 0:00:08]} 13. Ne5 {[%emt 0:03:45]} Qe6 {[%emt 0:00:20]} 14. Nxc6 {[%emt 0:03:33]} Qxc6 {[%emt 0:05:29]} 15. Na4 {[%emt 0:02:02]} Qd6 {[%emt 0:00:23]} 16. Nc5 {[%emt 0:03:50]} b6 {[%emt 0:04:09]} 17. Na6 {[%emt 0:04:25]} Rac8 {[%emt 0:02:48]} 18. Qd3 {[%emt 0:01:11]} Ne4 {[%emt 0:03:44]} 19. f3 {[%emt 0:08:27]} Ng5 {[%emt 0:01:39]} 20. f4 {[%emt 0:02:05]} Ne4 {[%emt 0:00:52]} 21. a4 {[%emt 0:03:07]} h5 {[%emt 0:02:29]} 22. b4 {[%emt 0:04:04]} Qe6 {[%emt 0:03:06]} 23. b5 {[%emt 0:00:39]} h4 {[%emt 0:13:38]} 24. Nb4 {[%emt 0:04:00]} Rc4 {[%emt 0:05:00]} 25. Rxc4 {[%emt 0:02:24]} dxc4 {[%emt 0:00:06]} 26. Qe3 {[%emt 0:00:39]} c3 {[%emt 0:01:31]} 27. d5 {[%emt 0:01:44]} Qf5 {[%emt 0:05:38]} 28. Ba3 {[%emt 0:00:47]} Nd2 {[%emt 0:01:14]} 29. Ra1 {[%emt 0:01:00]} c2 {[%emt 0:04:40]} 30. Rc1 {[%emt 0:00:34]} Nc4 {[%emt 0:02:42]} 31. Qf3 {[%emt 0:00:03]} h3+ {[%emt 0:00:31]} 32. Kf1 {[%emt 0:00:34]} Nd2+ {[%emt 0:00:06]} 0-1